Cogmind - Beta 12 @@@ ROGUE MODE // 2024.01.02 @ 21:44:10 Player: badjay Result: Destroyed by C-17 Slicer with Blade Saw Performance ------------- Evolutions (2) 1000 Regions Visited (5) 1000 Robots Destroyed (8) 40 Value Destroyed (80) 80 Prototype IDs (3) 60 Alien Tech Used (0) 0 Bonus (7) 7 TOTAL SCORE: 2187 Bonus ------- Follower Combat Kills 7 Cogmind --------- Core Integrity 0/550 Matter 273/300 Energy 94/100 System Corruption 0% Temperature Cool (0) Movement Core (50) Location -8/Materials Parts ------- > --- POWER (1) -------- (None) > --- PROPULSION (4) --- (None) > --- UTILITY (4) ------ (None) > --- WEAPON (2) ------- (None) > --- INVENTORY (5) ---- Light Ion Engine Flight Unit Experimental Sensor Array Improved Datajack Peak State ------------ > --- POWER ------------ Light Ion Engine > --- PROPULSION ------- Flight Unit Flight Unit > --- UTILITY ---------- Experimental Sensor Array > --- WEAPON ----------- Improved Datajack Mining Claw > --- INVENTORY -------- Light Ion Engine [Rating: 16] Favorites ----------- Power Light Ion Engine Engine Light Ion Engine Propulsion Flight Unit Wheel Wheel Flight Unit Flight Unit Utility Experimental Sensor Array Device Experimental Sensor Array Weapon Mining Claw Energy Gun EM Pulse Gun Impact Weapon Mace Slashing Weapon Mining Claw Special Melee Weapon Improved Datajack Build | -11 -10 -10 -9 -9 -8 ------- Run | Jun Mat Min Mat Min Mat Slots Evolved 4 | . . . 2 . 2 Power . | . . . . . . Propulsion 2 | . . . 1 . 1 Utility 2 | . . . 1 . 1 Weapon . | . . . . . . Parts Attached 25 | 4 2 1 . 9 9 Power 4 | 1 . . . 2 1 Engine 4 | 1 . . . 2 1 Core . | . . . . . . Reactor . | . . . . . . Propulsion 12 | 2 1 . . 4 5 Treads . | . . . . . . Leg . | . . . . . . Wheel 2 | 2 . . . . . Hover . | . . . . . . Flight 10 | . 1 . . 4 5 Utility 2 | . . 1 . 1 . Device 2 | . . 1 . 1 . Storage . | . . . . . . Processor . | . . . . . . Hackware . | . . . . . . Protection . | . . . . . . Artifact . | . . . . . . Weapon 7 | 1 1 . . 2 3 Energy Gun 2 | 1 . . . 1 . Energy Cannon . | . . . . . . Ballistic Gun . | . . . . . . Ballistic Cannon . | . . . . . . Launcher . | . . . . . . Special Weapon . | . . . . . . Impact Weapon 2 | . . . . . 2 Slashing Weapon 2 | . 1 . . 1 . Piercing Weapon . | . . . . . . Special Melee Weapon 1 | . . . . . 1 Unidentified Prototypes 1 | . . 1 . . . Corrupted Parts 1 | . . . . 1 . System Corruption 1 | . . . . 1 . Parts Lost 8 | . 1 . . 1 6 Power 2 | . 1 . . . 1 Propulsion 6 | . . . . 1 5 Utility . | . . . . . . Weapon . | . . . . . . Highest Loss Streak 5 | . 1 . . 1 5 To Critical Strikes . | . . . . . . Average Slot Usage (%) 35 | . 42 36 33 39 28 Engine 2 | . 4 . . 3 3 Wheel 3 | . 21 . . . . Flight 12 | . 3 14 11 18 13 Device 5 | . . 8 11 7 2 Energy Gun 2 | . 12 . . 3 . Slashing Weapon 7 | . . 14 11 6 6 Naked Turns 10 | . . . . . 10 Heaviest Build 7 | 5 5 3 3 6 7 Greatest Support 20 | 20 20 4 4 12 16 Greatest Overweight (x) 1 | 1 . . . . . Average Overweight (x) . | . . . . . . Largest Inventory Capacity 5 | 5 5 5 5 5 5 Average Capacity 5 | 5 5 5 5 5 5 Most Carried 5 | . 3 2 2 3 5 Average Carried 2 | . . 2 2 2 3 Final Capacity 5 | 5 5 5 5 5 5 Final Carried 4 | . 2 2 2 1 4 Class Distribution -------------------- 91% | Mutant 8% | Scavenger-Mutant Dominant Class ---------------- Mutant | -10/Materials Mutant | -10/Mines Mutant | -9/Materials Mutant | -9/Mines Mutant | -8/Materials Resources | -11 -10 -10 -9 -9 -8 ----------- Run | Jun Mat Min Mat Min Mat Matter Collected 388 | 240 . 29 . 37 82 Remotely . | . . . . . . Salvage Created 111 | . 38 . . 25 48 Parts 16 | . 4 . . 4 8 Haulers Intercepted . | . . . . . . Recyclers Shooed . | . . . . . . Parts Field Recycled . | . . . . . . Retrieved Matter . | . . . . . . Parts Self-Destructed . | . . . . . . Prevented . | . . . . . . Kills | -11 -10 -10 -9 -9 -8 ------- Run | Jun Mat Min Mat Min Mat Combat Hostiles Destroyed 8 | . 2 . . 2 4 Melee 4 | . . . . . 4 Guns 4 | . 2 . . 2 . Classes Destroyed 1 | . 1 . . . . Swarmer 8 | . 2 . . 2 4 Best Kill Streak 4 | . 2 . . 2 4 Combat Bots Only 4 | . 2 . . 2 4 Max Kills in Single Turn 1 | . 1 . . 1 1 Gunslinging . | . . . . . . Exploded . | . . . . . . Melee 1 | . . . . . 1 Uniques/NPCs Destroyed . | . . . . . . Combat | -11 -10 -10 -9 -9 -8 -------- Run | Jun Mat Min Mat Min Mat Damage Taken 1160 | . 239 12 18 61 830 Core 766 | . 136 . 18 47 565 Absorbed by Shields . | . . . . . . Core Remaining (%) 76 | 100 . 45 . 83 . Volleys Fired 8 | . 3 . . 5 . Largest 1 | . 1 . . 1 . Hottest 40 | . 40 . . 40 . Shots Fired 8 | . 3 . . 5 . Gun 8 | . 3 . . 5 . Cannon . | . . . . . . Launcher . | . . . . . . Special . | . . . . . . Kinetic . | . . . . . . Thermal . | . . . . . . Explosive . | . . . . . . Electromagnetic 8 | . 3 . . 5 . Robot Hit Streak 3 | . 2 . . 3 . Robot Miss Streak 2 | . 1 . . 2 . Penetration Max . | . . . . . . Secondary Targets . | . . . . . . Shots Hit Robots 13 | . 2 . . 3 8 Core Hits 8 | . 2 . . 2 4 Critical Kills . | . . . . . . Critical Parts Destroyed . | . . . . . . Critical Strikes . | . . . . . . Melee Attacks 16 | . . . . . 16 Impact 3 | . . . . . 3 Slashing 13 | . . . . . 13 Piercing . | . . . . . . Sneak Attacks . | . . . . . . Combat Hostiles . | . . . . . . Follow-up Attacks . | . . . . . . Damage Inflicted 241 | . 23 . . 33 185 Guns 56 | . 23 . . 33 . Cannons . | . . . . . . Explosions . | . . . . . . Melee 185 | . . . . . 185 Ramming . | . . . . . . Kinetic . | . . . . . . Thermal . | . . . . . . Explosive . | . . . . . . Electromagnetic 56 | . 23 . . 33 . Impact 24 | . . . . . 24 Slashing 161 | . . . . . 161 Piercing . | . . . . . . Highest Corruption 1 | . . . . 1 . Average Corruption 1 | . . . . 1 . Corruption Purged . | . . . . . . Corruption Blocked . | . . . . . . Overload Shots . | . . . . . . Overflow Damage 3 | . . . . . 3 Projectiles . | . . . . . . Explosions . | . . . . . . Melee 3 | . . . . . 3 Knockbacks . | . . . . . . Impact . | . . . . . . Kinetic . | . . . . . . Secondary . | . . . . . . Self-Inflicted Damage . | . . . . . . Shots . | . . . . . . Rammed . | . . . . . . Targets Rammed . | . . . . . . Kicked . | . . . . . . Crushed . | . . . . . . Highest Temperature 15 | . 15 . . . . Average Temperature 10 | . 10 . . . . Received Heat Transfer 93 | . 60 6 . 9 18 Siege Activations . | . . . . . . Robots Corrupted . | . . . . . . Combat Hostiles . | . . . . . . Parts Fried . | . . . . . . Impact Corruptions . | . . . . . . Robots Melted . | . . . . . . Combat Hostiles . | . . . . . . Parts Melted . | . . . . . . Heat Transferred . | . . . . . . Parts Sabotaged . | . . . . . . Parts Stolen . | . . . . . . Parts Stripped . | . . . . . . Power Chain Reactions . | . . . . . . Missiles Intercepted . | . . . . . . Alert | -11 -10 -10 -9 -9 -8 ------- Run | Jun Mat Min Mat Min Mat Peak Influence 210 | . 65 25 24 78 210 Initial 25 | . . 25 9 9 8 Average 43 | . 36 25 19 30 91 Maximum Alert Level 1 | . . . . . 1 Low Security (%) 98 | 100 100 100 100 100 96 Level 1 1 | . . . . . 4 Level 2 . | . . . . . . Level 3 . | . . . . . . Level 4 . | . . . . . . Level 5 . | . . . . . . High Security . | . . . . . . Max Security . | . . . . . . Squads Dispatched 5 | . 1 . 2 . 2 Investigation . | . . . . . . Extermination . | . . . . . . Reinforcement 5 | . 1 . 2 . 2 Assault . | . . . . . . Garrison . | . . . . . . Intercept . | . . . . . . Searches Triggered . | . . . . . . Construction Impeded . | . . . . . . Haulers Reinforced . | . . . . . . Active Scanning Responses . | . . . . . . Cargo Convoy Interrupts . | . . . . . . Stealth | -11 -10 -10 -9 -9 -8 --------- Run | Jun Mat Min Mat Min Mat Distress Signals 3 | . 1 . . . 2 Communications Jammed . | . . . . . . Distress Signals . | . . . . . . Times Spotted 51 | . 9 2 9 5 26 Peak Tracking Total 18 | . 7 2 9 3 18 Tactical Retreats 3 | . 1 . . . 2 Traps | -11 -10 -10 -9 -9 -8 ------- Run | Jun Mat Min Mat Min Mat Traps Triggered 1 | . 1 . . . . Indirectly . | . . . . . . Trap Hack Attempts . | . . . . . . Triggered . | . . . . . . Disarmed . | . . . . . . Reprogrammed . | . . . . . . Reused . | . . . . . . Traps Extracted . | . . . . . . Installed . | . . . . . . Triggered . | . . . . . . Machines | -11 -10 -10 -9 -9 -8 ---------- Run | Jun Mat Min Mat Min Mat Machines Disabled . | . . . . . . Max in Single Turn . | . . . . . . Machines Repaired . | . . . . . . Machines Sabotaged . | . . . . . . Overloaded Fab Kills . | . . . . . . Hacking | -11 -10 -10 -9 -9 -8 --------- Run | Jun Mat Min Mat Min Mat Machines Accessed 4 | . 2 . . . 2 Terminals 4 | . 2 . . . 2 Fabricators . | . . . . . . Repair Stations . | . . . . . . Recycling Units . | . . . . . . Scanalyzers . | . . . . . . Garrison Access . | . . . . . . Total Hacks 10 | . 5 . . . 5 Successful 3 | . 1 . . . 2 Failed 7 | . 4 . . . 3 Catastrophic . | . . . . . . Database Lockouts . | . . . . . . Manual 5 | . . . . . 5 Terminals 10 | . 5 . . . 5 Fabricators . | . . . . . . Repair Stations . | . . . . . . Recycling Units . | . . . . . . Scanalyzers . | . . . . . . Garrison Access . | . . . . . . Terminal Hacks 1 | . 1 . . . . Prototype ID Bank 1 | . 1 . . . . Fabricator Hacks . | . . . . . . Repair Station Hacks . | . . . . . . Recycling Unit Hacks . | . . . . . . Scanalyzer . | . . . . . . Garrison Access Hacks . | . . . . . . Unauthorized Hacks 2 | . . . . . 2 Terminals 2 | . . . . . 2 Botnet 2 | . . . . . 2 Fabricators . | . . . . . . Repair Stations . | . . . . . . Recycling Units . | . . . . . . Scanalyzers . | . . . . . . Garrison Access . | . . . . . . Data Cores Recovered . | . . . . . . Used . | . . . . . . Hacking Detections 4 | . 2 . . . 2 Full Trace Events . | . . . . . . Feedback Events . | . . . . . . Feedback Blocked . | . . . . . . Robot Schematics Acquired . | . . . . . . Robots Built . | . . . . . . Authchips . | . . . . . . Time . | . . . . . . Total Robot Build Rating . | . . . . . . Part Schematics Acquired . | . . . . . . Parts Built . | . . . . . . Authchips . | . . . . . . Time . | . . . . . . Total Part Build Rating . | . . . . . . Parts Repaired . | . . . . . . Time . | . . . . . . Parts Recycled . | . . . . . . Recycled Matter . | . . . . . . Retrieved Matter . | . . . . . . Retrieved Components . | . . . . . . Parts Scanalyzed . | . . . . . . Part Schematics Acquired . | . . . . . . Parts Damaged . | . . . . . . Bothacking | -11 -10 -10 -9 -9 -8 ------------ Run | Jun Mat Min Mat Min Mat Used RIF Installer . | . . . . . . Robots Hacked . | . . . . . . Non-combat . | . . . . . . Combat . | . . . . . . Robot Hacks Applied . | . . . . . . Relay Couplers Released . | . . . . . . Fabnet Peak Effective % . | . . . . . . Robots Rewired . | . . . . . . Allies Hacked . | . . . . . . Hacks Repelled . | . . . . . . Allies | -11 -10 -10 -9 -9 -8 -------- Run | Jun Mat Min Mat Min Mat Total Allies 5 | . . . . 5 . Largest Group 5 | . . . . 5 . Highest-Rated Group 79 | . . . . 79 . Highest-Rated Ally 31 | . . . . 31 . Total Orders . | . . . . . . Ally Attacks 22 | . . . . 22 . Total Damage 174 | . . . . 174 . Kills 2 | . . . . 2 . Allies Corrupted . | . . . . . . Allies Melted . | . . . . . . Intel | -11 -10 -10 -9 -9 -8 ------- Run | Jun Mat Min Mat Min Mat Robot Analysis Total . | . . . . . . Derelict Logs Recovered 2 | . . 1 . 1 . Drone Launches . | . . . . . . Drone Recoveries . | . . . . . . Exploration | -11 -10 -10 -9 -9 -8 ------------- Run | Jun Mat Min Mat Min Mat Turns Passed 569 | 39 91 135 25 129 150 Spaces Moved 1006 | 49 111 310 61 239 236 Core 47 | 27 . . . . 20 Treads . | . . . . . . Legs . | . . . . . . Wheels 106 | 22 84 . . . . Hover . | . . . . . . Flight 853 | . 27 310 61 239 216 Fastest Speed 30 | 50 40 40 40 34 30 Average Speed 43 | 68 70 40 40 37 36 Slowest Speed 100 | 100 80 40 40 40 50 Overloaded Moves 28 | . . . . . 28 Propulsion Burnouts . | . . . . . . Robots Hopped 5 | . . 2 . . 3 Cave-ins Triggered . | . . . . . . Exploration Rate (%) 35 | 2 21 78 16 55 38 Regions Visited 5 Branch Regions 2 Pre-discovered Areas . | . . . . . . Known Exits Taken 1 | . . . . 1 . Unknown Exits Taken 4 | 1 1 1 1 . . Scrap Searched 1 | . . 1 . . . Spaces Dug . | . . . . . . Terrain Destroyed . | . . . . . . Melee . | . . . . . . Projectile . | . . . . . . AOE . | . . . . . . Terrain Rammed . | . . . . . . Walls Destroyed . | . . . . . . Machines Disabled . | . . . . . . Actions | -11 -10 -10 -9 -9 -8 --------- Run | Jun Mat Min Mat Min Mat Total 1084 | 52 121 317 60 271 263 Wait 26 | . . 9 . 16 1 Move 991 | 48 110 305 60 238 230 Hop 5 | . . 2 . . 3 Pick Up 3 | . 3 . . . . Fast Attach 18 | 4 . 1 . 5 8 Attach 7 | . 2 . . 4 1 Detach 8 | . 1 . . 3 4 Swap . | . . . . . . Drop 2 | . 2 . . . . Fire 8 | . 3 . . 5 . Melee 16 | . . . . . 16 Ram . | . . . . . . Kick . | . . . . . . Crush . | . . . . . . Escape Stasis . | . . . . . . Rewire . | . . . . . . Trap . | . . . . . . Miscellaneous . | . . . . . . Route ------- -11/Junkyard -10/Materials -10/Mines -9/Materials (discovered 3 exits: Mat x2 / [*Min]) -9/Mines -8/Materials History --------- Turn | Location | Event 6 | -11/Junkyard | Discovered new exit (range 16) 40 | -11/Junkyard | Entered Materials 95 | -10/Materials | Core integrity fell below 50% 122 | -10/Materials | Discovered new exit (range 14) 131 | -10/Materials | Entered Mines 171 | -10/Mines | Learned 2 Materials zone layouts 186 | -10/Mines | Found a damaged Exp. Sensor Array with a note attached 186 | -10/Mines | Found Prototype Device 186 | -10/Mines | Identified Exp. Sensor Array 201 | -10/Mines | Received a Rocket Launcher from a helpful Derelict 264 | -10/Mines | Discovered new exit (range 5) 266 | -10/Mines | Entered Materials 266 | -9/Materials | Evolved 2 slots: Propulsion x1, Utility x1 267 | -9/Materials | Identified exit to Materials 288 | -9/Materials | Discovered new exit (range 7) 291 | -9/Materials | Entered Mines 293 | -9/Mines | Assisted by bots powering up and referring to "LRC-V3" 293 | -9/Mines | Learned Materials non-interactive machine intel 302 | -9/Mines | Build established: Mutant 357 | -9/Mines | Assembled infested the area 362 | -9/Mines | Assisted by a Guerilla fighting off Assembled 413 | -9/Mines | Discovered exit to Materials (range 15) 420 | -9/Mines | Entered Materials 420 | -8/Materials | Evolved 2 slots: Propulsion x1, Utility x1 421 | -8/Materials | Loaded intel: 35 non-interactive machine locations 536 | -8/Materials | Core integrity fell below 50% 557 | -8/Materials | Core integrity fell below 20% 570 | -8/Materials | Destroyed by C-17 Slicer with Blade Saw Last Messages --------------- 00540_ K-01 Serf collects debris. 00547_ O-16 Technician: "IFF HANDSHAKE FAILED. SECURING TERMINAL." 00549_ Acquired Mace. 00550_ Mace severed. 00551_ Acquired Mace. 00551_ ALERT: Hostiles spotted, dispatching reinforcements to Terminal M002. 00553_ K-01 Serf collects debris. 00554_ Flight Unit destroyed. 00557_ Surge Thruster destroyed. 00558_ Fusion Modulator explodes. 00558_ Terminal disabled. 00558_ K-01 Serf collects debris. 00559_ C-17 Slicer destroyed. 00560_ Mace severed. 00560_ R-06 Scavenger collects Mace. 00561_ S-10 Pest destroyed. 00563_ K-01 Serf collects debris. 00563_ R-06 Scavenger collects Mace. 00566_ K-01 Serf collects debris. Map ----- +----------------------------------------------------+ | "????? ""#?# #????????????"""""?????? | | "#??""" Y"#?# #????????????"""""?????? | | "#??""" ""#?# #??????????????????????? | | #??""" ### ##?????????????????????? | | #?? ## #######???????????????? | | #??""" ## T ???????????? | | #??""" ?# ##+###????????????????? | | #??""" ?# ###?????????????????????? | | ##????? ?# #???????????????????????? | | ??????? ?# #???????????????????????? | | ?????#?##??# #???????????????????????? | | ?????# ????#%###?????????????T???????? | | ???### #####= ^+???????????? ?????? | | ???# #???+##?????? !?????? | | ???# ### ####### #?????? | | "??+ T #?????? | | "??# ## ### #?????? | | "??# #??????# #?????? | | ???## /* #??##### ##????? | | ????# %/ /####!! #????? | | + / /""##!! #????? | | # ///""##!! #????? | | ????# T"##!! #????? | | ????## ""##!! #????? | | ?????# "#?!! #????? | | ?????# "####### @ #????? | | ?????# c #????? | | ?????# #????? | | ?????# #????? | | ?????# #????? | | ?????# #????? | | ?????# #????? | | ?????# # ##????? | | ?????##"T"""";;############# #?????? | | ??????##########???????????? +?????? | | ????????????????????????????? #?????? | | ????????????????????????????? #?????? | | ????????????????????????????? #?????? | | ?????????????????????????????? #?????? | | ??????????????"""????????????????????? | | ??????????????"""????????????????????? | | ??????????????"""????????????????????? | | ?????????????????????????????????????? | | ?????????????????????????????????????? | | ???????????????????????????????"""???? | | ???????????????????????????????"""???? | | ???????????????????????????????"""???? | | ?????????????????????????????????????? | | ?????????????????????????????????????? | | ?????????????????????????????????????? | +----------------------------------------------------+ Best States ------------- Heat Dissipation 31 Energy Generation 10 Energy Capacity 125 Matter Stores 300 Matter Capacity 300 Sight Range 16 Robot Scan Range 20 Terrain Scan Density 10 Evasion (%) 64 Item Schematics ----------------- None Robot Schematics ------------------ None Fabricated ------------ Nothing Alien Tech Used ----------------- None Achievements -------------- None Challenges ------------ None Game ------ Seed RiotNeutrinoShredder Manual? 0 Play Time 00:13:12 Cumulative 149.5 hours Start 2024.01.02 @ 21:33:37 End 2024.01.02 @ 21:44:10 Sessions 1 Manual Loads 0 Difficulty Rogue Special Mode None Game No. 149 Rogue 149 Adventurer 0 Explorer 0 Win Type - Total 13 Types 11/0/0/1/0/0/1/0/0 Lore% 67 Gallery% 66 Achievement% 67 Wizard Run 0 Options --------- ASCII 0 Keyboard 0 Movement Numpad Keybinds 0 Fullscreen 1 Font 18/SmallcapsGlow Map View 76x50 Tactical HUD 1 Map Filters NONE Filters NONE Steam 1 RUN: 991fd660-bbb8-433c-9074-2292e2d68505